[Event "POL-chT 2nd League-4 2020"]
[Site "Poronin"]
[Date "2020.09.07"]
[Round "3.2"]
[White "Mirski, Michal"]
[Black "Grela, Kacper"]
[Result "0-1"]
[ECO "B68"]
[WhiteElo "2032"]
[BlackElo "2377"]
[Annotator "ChessBase"]
[PlyCount "128"]
[EventDate "2020.09.05"]
[EventType "team-tourn"]
[EventCountry "POL"]
[SourceTitle "playchess.com"]
[Source "ChessBase"]
[SourceQuality "1"]
[TimeControl "40/5400+30:900+30"]

1. e4 {[%emt 0:00:00]} c5 {[%emt 0:00:00]} 2. Nf3 {[%emt 0:00:00]} Nc6 {[%emt 0:00:00]} 3. Nc3 {[%emt 0:00:32]} d6 {[%emt 0:00:35]} 4. d4 {[%emt 0:00:51]} cxd4 {[%emt 0:00:08]} 5. Nxd4 {[%emt 0:00:04]} Nf6 {[%emt 0:00:09]} 6. Bg5 {[%emt 0:00:41]} e6 {[%emt 0:00:11]} 7. Qd2 {[%emt 0:00:21]} a6 {[%emt 0:00:07]} 8. O-O-O {[%emt 0:00:16]} Bd7 {[%emt 0:00:15]} 9. f4 {[%emt 0:01:41]} Be7 {[%emt 0:00:30]} 10. Be2 {[%emt 0:02:53]} b5 {[%emt 0:04:02]} 11. Bf3 {[%emt 0:03:34]} Rc8 {[%emt 0:18:21]} 12. g4 {[%emt 0:16:12]} Qb6 {[%emt 0:04:53]} 13. Bxf6 {[%emt 0:02:08]} Bxf6 {[%emt 0:10:37]} 14. Nxc6 {[%emt 0:07:11]} Bxc6 {[%emt 0:00:59]} 15. g5 {[%emt 0:03:40]} Be7 {[%emt 0:00:45]} 16. h4 {[%emt 0:02:38]} Qc5 {[%emt 0:11:03]} 17. Kb1 {[%emt 0:07:42]} a5 {[%emt 0:01:34]} 18. h5 {[%emt 0:04:56]} a4 {[%emt 0:04:15]} 19. Ne2 {[%emt 0:03:52]} a3 {[%emt 0:02:46]} 20. Qd4 {[%emt 0:04:13]} Qxd4 {[%emt 0:03:02]} 21. Nxd4 {[%emt 0:00:14]} axb2 {[%emt 0:01:21]} 22. Kxb2 {[%emt 0:03:17]} O-O {[%emt 0:03:54]} 23. Rhg1 {[%emt 0:03:56]} b4 {[%emt 0:02:08]} 24. f5 {[%emt 0:01:31]} Ba4 {[%emt 0:02:06]} 25. fxe6 {[%emt 0:01:14]} Rc5 {[%emt 0:03:51]} 26. exf7+ {[%emt 0:06:58]} Rxf7 {[%emt 0:00:21]} 27. Bg4 {[%emt 0:00:54]} Bxg5 {[%emt 0:06:56]} 28. Be6 {[%emt 0:02:11]} Bf6 {[%emt 0:00:24]} 29. h6 {[%emt 0:05:20]} g6 {[%emt 0:08:30]} 30. Kb1 {[%emt 0:04:17]} Kf8 {[%emt 0:00:55]} 31. Rgf1 {[%emt 0:01:00]} Ke7 {[%emt 0:03:08]} 32. Bxf7 {[%emt 0:00:05]} Kxf7 {[%emt 0:00:04]} 33. Rf2 {[%emt 0:01:29]} Ke7 {[%emt 0:00:59]} 34. Nb3 {[%emt 0:00:46]} Rh5 {[%emt 0:03:36]} 35. Rdf1 {[%emt 0:01:06]} Bc3 {[%emt 0:00:06]} 36. Rf7+ {[%emt 0:00:22]} Ke6 {[%emt 0:00:08]} 37. Rxh7 {[%emt 0:01:04]} Bc6 {[%emt 0:00:05]} 38. Rc7 {[%emt 0:01:51]} Bxe4 {[%emt 0:00:19]} 39. a3 {[%emt 0:01:40]} Rh2 {[%emt 0:03:40]} 40. Rc1 {[%emt 0:00:00]} d5 {[%emt 0:00:00]} 41. axb4 {[%emt 0:02:15]} Bxb4 {[%emt 0:02:06]} 42. h7 {[%emt 0:01:24]} Kd6 {[%emt 0:01:14]} 43. Ra7 {[%emt 0:03:01]} g5 {[%emt 0:01:14]} 44. Rg7 {[%emt 0:03:12]} Bxh7 {[%emt 0:01:17]} 45. Nd4 {[%emt 0:01:47]} Be4 {[%emt 0:02:27]} 46. Kb2 {[%emt 0:05:07]} Bd2 {[%emt 0:01:56]} 47. Rf1 {[%emt 0:02:07]} Bf4 {[%emt 0:00:24]} 48. Kb3 {[%emt 0:04:33]} Be5 {[%emt 0:01:19]} 49. Nb5+ {[%emt 0:00:23]} Kc5 {[%emt 0:00:56]} 50. Rxg5 {[%emt 0:00:19]} Bxc2+ {[%emt 0:03:20]} 51. Ka3 {[%emt 0:00:10]} Bb2+ {[%emt 0:02:04]} 52. Kxb2 {[%emt 0:01:34]} Bd3+ {[%emt 0:00:05]} 53. Kc3 {[%emt 0:00:21]} Bxf1 {[%emt 0:00:06]} 54. Nc7 {[%emt 0:00:26]} Rh3+ {[%emt 0:00:35]} 55. Kd2 {[%emt 0:00:18]} Bc4 {[%emt 0:00:08]} 56. Ne6+ {[%emt 0:00:13]} Kd6 {[%emt 0:00:25]} 57. Nf4 {[%emt 0:00:17]} Rf3 {[%emt 0:00:11]} 58. Ng2 {[%emt 0:00:46]} d4 {[%emt 0:00:55]} 59. Kc2 {[%emt 0:02:35]} Rf2+ {[%emt 0:00:22]} 60. Kd1 {[%emt 0:00:13]} d3 {[%emt 0:00:57]} 61. Ne3 {[%emt 0:00:53]} Bb3+ {[%emt 0:00:30]} 62. Kc1 {[%emt 0:00:26]} d2+ {[%emt 0:00:28]} 63. Kb1 {[%emt 0:00:26]} Re2 {[%emt 0:00:08]} 64. Nf5+ {[%emt 0:00:59]} Ke5 0-1

[Event "POL-chT 2nd League-4 2020"]
[Site "Poronin"]
[Date "2020.09.07"]
[Round "3.3"]
[White "Kowalak, Piotr"]
[Black "Turecki, Stanislaw"]
[Result "1-0"]
[ECO "B91"]
[WhiteElo "2105"]
[BlackElo "1785"]
[Annotator "ChessBase"]
[PlyCount "29"]
[EventDate "2020.09.05"]
[EventType "team-tourn"]
[EventCountry "POL"]
[SourceTitle "playchess.com"]
[Source "ChessBase"]
[SourceQuality "1"]
[TimeControl "40/5400+30:1800+30"]

1. e4 {[%emt 0:00:00]} c5 {[%emt 0:00:00]} 2. Nf3 {[%emt 0:00:00]} d6 {[%emt 0:00:10]} 3. d4 {[%emt 0:00:00]} cxd4 {[%emt 0:00:20]} 4. Nxd4 {[%emt 0:00:04]} Nf6 {[%emt 0:00:39]} 5. Nc3 {[%emt 0:00:09]} a6 {[%emt 0:01:04]} 6. g3 {[%emt 0:00:33]} b5 {[%emt 0:02:07]} 7. Bg2 {[%emt 0:00:35]} Bb7 {[%emt 0:00:36]} 8. O-O {[%emt 0:02:15]} e6 {[%emt 0:02:38]} 9. Re1 {[%emt 0:01:13]} Be7 {[%emt 0:03:15]} 10. e5 {[%emt 0:02:09]} Nd5 {[%emt 0:07:02]} 11. Bxd5 {[%emt 0:10:09]} Bxd5 {[%emt 0:06:14]} 12. Nxd5 {[%emt 0:00:25]} dxe5 {[%emt 0:03:58]} 13. Nxe7 {[%emt 0:04:07]} Qxd4 {[%emt 0:04:09]} 14. Qxd4 {[%emt 0:00:02]} exd4 {[%emt 0:00:04]} 15. Nf5 {[%emt 0:00:32]} 1-0

[Event "POL-chT 2nd League-4 2020"]
[Site "Poronin"]
[Date "2020.09.07"]
[Round "3.4"]
[White "Rainer, Piotr"]
[Black "Madera, Mateusz"]
[Result "1-0"]
[ECO "B48"]
[WhiteElo "1641"]
[BlackElo "1945"]
[Annotator "NA"]
[PlyCount "57"]
[EventDate "2020.09.05"]
[EventType "team-tourn"]
[EventCountry "POL"]
[SourceTitle "playchess.com"]
[Source "ChessBase"]
[SourceQuality "1"]
[TimeControl "40/5400+30:900+30"]

1. e4 {[%emt 0:00:00]} c5 {[%emt 0:00:00]} 2. Nf3 {[%emt 0:00:08]} e6 {[%emt 0:00:00]} 3. d4 {[%emt 0:00:08]} cxd4 {[%emt 0:00:00]} 4. Nxd4 {[%emt 0:00:14]} Nc6 {[%emt 0:00:00]} 5. Nc3 {[%emt 0:01:14]} Qc7 {[%emt 0:00:00]} 6. Be3 {[%emt 0:01:44]} a6 {[%emt 0:00:00]} 7. Bd3 {[%emt 0:00:54]} Nf6 {[%emt 0:00:00]} 8. O-O {[%emt 0:02:21]} b5 {[%emt 0:03:45]} 9. a4 {[%emt 0:05:06]} b4 {[%emt 0:03:37]} 10. Nce2 {[%emt 0:02:04]} Ng4 {[%emt 0:12:06]} 11. Bf4 {[%emt 0:04:31]} Bd6 {[%emt 0:25:38]} 12. Bg3 {[%emt 0:04:48]} Nxd4 {[%emt 0:21:08]} 13. Nxd4 {[%emt 0:03:56]} Nxh2 {[%emt 0:01:43]} 14. Kxh2 {[%emt 0:07:13]} h5 {[%emt 0:02:16]} 15. Kg1 {[%emt 0:03:37]} Bxg3 {[%emt 0:01:08]} 16. fxg3 {[%emt 0:00:07]} Qc5 {[%emt 0:00:55]} 17. c3 {[%emt 0:01:43]} e5 {[%emt 0:02:19]} 18. Bc4 {[%emt 0:07:48]} Qxc4 {[%emt 0:04:06]} 19. Nf5 {[%emt 0:00:21]} Qc5+ {[%emt 0:00:51]} 20. Rf2 {[%emt 0:00:17]} O-O {[%emt 0:09:51]} 21. Qxh5 {[%emt 0:01:40]} d5 {[%emt 0:01:41]} 22. cxb4 {[%emt 0:02:39]} Qxb4 {[%emt 0:00:01]} 23. Nxg7 {[%emt 0:03:09]} Qxe4 {[%emt 0:02:10]} 24. Nf5 {[%emt 0:01:13]} Bxf5 {[%emt 0:01:11]} 25. Rxf5 {[%emt 0:00:10]} Rae8 {[%emt 0:05:49]} 26. Rg5+ {[%emt 0:00:40]} Qg6 {[%emt 0:00:08]} 27. Rxg6+ {[%emt 0:00:07]} fxg6 {[%emt 0:00:01]} 28. Qxg6+ {[%emt 0:00:09]} Kh8 {[%emt 0:00:00]} 29. Rc1 {[%emt 0:00:32]} 1-0

[Event "POL-chT 2nd League-4 2020"]
[Site "Poronin"]
[Date "2020.09.07"]
[Round "3.6"]
[White "Siwek, Kinga"]
[Black "Karykowska, Anna"]
[Result "0-1"]
[ECO "B28"]
[WhiteElo "1804"]
[BlackElo "1999"]
[Annotator "ChessBase"]
[PlyCount "94"]
[EventDate "2020.09.05"]
[EventType "team-tourn"]
[EventCountry "POL"]
[SourceTitle "playchess.com"]
[Source "ChessBase"]
[SourceQuality "1"]
[TimeControl "40/5400+30:900+30"]

1. e4 {[%emt 0:00:00]} c5 {[%emt 0:00:00]} 2. Nf3 {[%emt 0:00:00]} a6 {[%emt 0:00:00]} 3. d3 {[%emt 0:00:42]} Nc6 {[%emt 0:02:39]} 4. g3 {[%emt 0:01:08]} g6 {[%emt 0:00:30]} 5. Bg2 {[%emt 0:00:27]} Bg7 {[%emt 0:00:08]} 6. c3 {[%emt 0:01:55]} d6 {[%emt 0:03:02]} 7. O-O {[%emt 0:02:26]} e5 {[%emt 0:05:37]} 8. Re1 {[%emt 0:06:07]} Nge7 {[%emt 0:00:39]} 9. Be3 {[%emt 0:02:27]} O-O {[%emt 0:01:43]} 10. Qd2 {[%emt 0:06:45]} b5 {[%emt 0:06:53]} 11. Na3 {[%emt 0:06:02]} Rb8 {[%emt 0:03:00]} 12. Bg5 {[%emt 0:08:11]} Be6 {[%emt 0:05:47]} 13. b4 {[%emt 0:06:15]} cxb4 {[%emt 0:05:39]} 14. cxb4 {[%emt 0:00:15]} f6 {[%emt 0:01:09]} 15. Be3 {[%emt 0:00:42]} d5 {[%emt 0:00:54]} 16. Bc5 {[%emt 0:08:06]} d4 {[%emt 0:02:02]} 17. Rac1 {[%emt 0:02:42]} Qd7 {[%emt 0:02:29]} 18. Rc2 {[%emt 0:01:28]} Rfc8 {[%emt 0:02:13]} 19. Rec1 {[%emt 0:02:08]} Bf8 {[%emt 0:05:21]} 20. Nb1 {[%emt 0:04:23]} Nd8 {[%emt 0:02:29]} 21. Qe2 {[%emt 0:03:43]} Nb7 {[%emt 0:01:43]} 22. Nbd2 {[%emt 0:05:39]} Nxc5 {[%emt 0:02:21]} 23. bxc5 {[%emt 0:00:08]} Nc6 {[%emt 0:02:06]} 24. Rb1 {[%emt 0:03:14]} a5 {[%emt 0:04:49]} 25. a3 {[%emt 0:06:39]} a4 {[%emt 0:02:41]} 26. Nh4 {[%emt 0:05:25]} Na5 {[%emt 0:02:20]} 27. f4 {[%emt 0:01:59]} Rxc5 {[%emt 0:03:03]} 28. Rxc5 {[%emt 0:01:29]} Bxc5 {[%emt 0:00:05]} 29. f5 {[%emt 0:00:31]} Bf7 {[%emt 0:03:10]} 30. fxg6 {[%emt 0:01:20]} hxg6 {[%emt 0:01:00]} 31. Qf3 {[%emt 0:00:42]} Rb6 {[%emt 0:06:48]} 32. Qf1 {[%emt 0:05:01]} Nb3 {[%emt 0:03:34]} 33. Nxb3 {[%emt 0:00:36]} axb3 {[%emt 0:00:07]} 34. Bh3 {[%emt 0:00:22]} Qd6 {[%emt 0:02:19]} 35. Qc1 {[%emt 0:01:36]} Kg7 {[%emt 0:01:28]} 36. Ra1 {[%emt 0:02:43]} Rc6 {[%emt 0:01:37]} 37. Qb2 {[%emt 0:02:03]} Bxa3 {[%emt 0:02:48]} 38. Rxa3 {[%emt 0:00:43]} Rc2 {[%emt 0:00:27]} 39. Rxb3 {[%emt 0:01:30]} Rxb2 {[%emt 0:00:33]} 40. Rxb2 {[%emt 0:00:00]} Qc5 {[%emt 0:00:00]} 41. Bf1 {[%emt 0:00:21]} b4 {[%emt 0:01:28]} 42. Nf3 {[%emt 0:01:27]} b3 {[%emt 0:01:26]} 43. Nd2 {[%emt 0:03:14]} Qc3 {[%emt 0:01:20]} 44. Rxb3 {[%emt 0:02:12]} Bxb3 {[%emt 0:00:08]} 45. Nxb3 {[%emt 0:00:16]} Qxb3 {[%emt 0:00:06]} 46. Be2 {[%emt 0:00:53]} f5 {[%emt 0:00:36]} 47. exf5 {[%emt 0:00:14]} gxf5 {[%emt 0:00:23]} 0-1

[Event "POL-chT 2nd League-4 2020"]
[Site "Poronin"]
[Date "2020.09.07"]
[Round "3.7"]
[White "Brzezinski, Mateusz"]
[Black "Kosiorek, Marek"]
[Result "0-1"]
[ECO "D03"]
[WhiteElo "2230"]
[BlackElo "2223"]
[Annotator "ChessBase"]
[PlyCount "84"]
[EventDate "2020.09.05"]
[EventType "team-tourn"]
[EventCountry "POL"]
[SourceTitle "playchess.com"]
[Source "ChessBase"]
[SourceQuality "1"]
[TimeControl "40/5400+30:900+30"]

1. d4 {[%emt 0:00:00]} d5 {[%emt 0:00:28]} 2. Nf3 {[%emt 0:00:00]} Nf6 {[%emt 0:00:18]} 3. Bg5 {[%emt 0:00:03]} e6 {[%emt 0:00:47]} 4. e3 {[%emt 0:00:21]} c5 {[%emt 0:00:50]} 5. Be2 {[%emt 0:03:36]} Qb6 {[%emt 0:02:13]} 6. Bxf6 {[%emt 0:15:25]} gxf6 {[%emt 0:06:17]} 7. b3 {[%emt 0:00:41]} cxd4 {[%emt 0:05:29]} 8. Qxd4 {[%emt 0:00:51]} Bg7 {[%emt 0:05:38]} 9. Qxb6 {[%emt 0:01:54]} axb6 {[%emt 0:01:26]} 10. a4 {[%emt 0:01:01]} f5 {[%emt 0:01:13]} 11. Nd4 {[%emt 0:02:56]} f4 {[%emt 0:06:14]} 12. Na3 {[%emt 0:02:54]} fxe3 {[%emt 0:03:33]} 13. fxe3 {[%emt 0:00:02]} Ke7 {[%emt 0:01:30]} 14. Nab5 {[%emt 0:01:16]} Na6 {[%emt 0:05:45]} 15. O-O {[%emt 0:03:36]} Bd7 {[%emt 0:07:10]} 16. c3 {[%emt 0:23:52]} Nc5 {[%emt 0:02:02]} 17. Ra3 {[%emt 0:06:30]} Bh6 {[%emt 0:08:10]} 18. Rf3 {[%emt 0:04:56]} e5 {[%emt 0:09:55]} 19. Nc7 {[%emt 0:03:18]} exd4 {[%emt 0:00:54]} 20. exd4 {[%emt 0:01:00]} Ne4 {[%emt 0:13:15]} 21. Nxd5+ {[%emt 0:02:59]} Kd6 {[%emt 0:01:10]} 22. Nxb6 {[%emt 0:06:53]} Bg4 {[%emt 0:03:36]} 23. Nxa8 {[%emt 0:03:59]} Rxa8 {[%emt 0:00:12]} 24. Ra2 {[%emt 0:06:19]} Bxf3 {[%emt 0:00:39]} 25. Bxf3 {[%emt 0:00:15]} Nxc3 {[%emt 0:01:34]} 26. Rc2 {[%emt 0:00:28]} Be3+ {[%emt 0:00:30]} 27. Kf1 {[%emt 0:00:12]} Bxd4 {[%emt 0:00:09]} 28. Rd2 {[%emt 0:01:22]} Ke5 {[%emt 0:00:21]} 29. Bxb7 {[%emt 0:00:16]} Rb8 {[%emt 0:00:12]} 30. Bc6 {[%emt 0:00:05]} Rxb3 {[%emt 0:03:52]} 31. g3 {[%emt 0:00:04]} Ra3 {[%emt 0:00:58]} 32. Kg2 {[%emt 0:00:20]} Nxa4 {[%emt 0:02:41]} 33. Re2+ {[%emt 0:00:06]} Kd6 {[%emt 0:00:10]} 34. Re4 {[%emt 0:01:59]} Ra2+ {[%emt 0:02:17]} 35. Kh3 {[%emt 0:00:52]} Kxc6 {[%emt 0:04:10]} 36. Rxd4 {[%emt 0:00:34]} Nc5 {[%emt 0:00:03]} 37. Kg4 {[%emt 0:05:52]} Rxh2 {[%emt 0:00:48]} 38. Rf4 {[%emt 0:00:19]} Nd7 {[%emt 0:00:40]} 39. Kg5 {[%emt 0:00:16]} f6+ {[%emt 0:01:08]} 40. Kf5 {[%emt 0:00:00]} Re2 {[%emt 0:00:00]} 41. Rh4 {[%emt 0:00:41]} Re5+ {[%emt 0:01:12]} 42. Kf4 {[%emt 0:00:24]} h5 {[%emt 0:01:25]} 0-1

[Event "POL-chT 2nd League-4 2020"]
[Site "Poronin"]
[Date "2020.09.07"]
[Round "3.8"]
[White "Lukasik, Adam"]
[Black "Kujawski, Adam"]
[Result "0-1"]
[ECO "A33"]
[WhiteElo "2010"]
[BlackElo "2201"]
[Annotator "ChessBase"]
[PlyCount "170"]
[EventDate "2020.09.05"]
[EventType "team-tourn"]
[EventCountry "POL"]
[SourceTitle "playchess.com"]
[Source "ChessBase"]
[SourceQuality "1"]
[TimeControl "40/5400+30:900+30"]

1. d4 {[%emt 0:00:00]} Nf6 {[%emt 0:00:00]} 2. Nf3 {[%emt 0:00:00]} c5 {[%emt 0:00:00]} 3. c4 {[%emt 0:02:27]} cxd4 {[%emt 0:00:00]} 4. Nxd4 {[%emt 0:00:11]} Nc6 {[%emt 0:00:08]} 5. Nc3 {[%emt 0:02:09]} e6 {[%emt 0:00:19]} 6. Ndb5 {[%emt 0:11:09]} d5 {[%emt 0:01:34]} 7. cxd5 {[%emt 0:04:06]} Nxd5 {[%emt 0:01:25]} 8. e4 {[%emt 0:06:53]} Nxc3 {[%emt 0:03:42]} 9. Qxd8+ {[%emt 0:00:17]} Kxd8 {[%emt 0:01:33]} 10. Nxc3 {[%emt 0:00:03]} Bc5 {[%emt 0:23:31]} 11. Bc4 {[%emt 0:13:53]} Ke7 {[%emt 0:11:25]} 12. O-O {[%emt 0:04:31]} a6 {[%emt 0:04:50]} 13. a4 {[%emt 0:03:38]} Ne5 {[%emt 0:06:43]} 14. Be2 {[%emt 0:01:06]} Rd8 {[%emt 0:01:25]} 15. Bf4 {[%emt 0:03:25]} Nd3 {[%emt 0:02:19]} 16. Bxd3 {[%emt 0:00:14]} Rxd3 {[%emt 0:00:06]} 17. Rfd1 {[%emt 0:00:56]} Rxd1+ {[%emt 0:04:08]} 18. Rxd1 {[%emt 0:01:57]} Bd7 {[%emt 0:00:43]} 19. e5 {[%emt 0:11:02]} Bc6 {[%emt 0:01:29]} 20. Kf1 {[%emt 0:01:27]} f6 {[%emt 0:03:39]} 21. f3 {[%emt 0:01:58]} Rd8 {[%emt 0:05:10]} 22. Rxd8 {[%emt 0:01:08]} Kxd8 {[%emt 0:00:07]} 23. Ke2 {[%emt 0:01:08]} Bd4 {[%emt 0:08:00]} 24. exf6 {[%emt 0:00:51]} gxf6 {[%emt 0:00:44]} 25. a5 {[%emt 0:00:25]} f5 {[%emt 0:02:17]} 26. Kd3 {[%emt 0:02:38]} Bf6 {[%emt 0:01:09]} 27. Be3 {[%emt 0:02:08]} Kd7 {[%emt 0:01:01]} 28. Bc5 {[%emt 0:00:35]} e5 {[%emt 0:01:27]} 29. Ke3 {[%emt 0:05:16]} Bg5+ {[%emt 0:02:22]} 30. Kd3 {[%emt 0:00:40]} Ke6 {[%emt 0:00:32]} 31. b4 {[%emt 0:03:17]} h5 {[%emt 0:03:55]} 32. h3 {[%emt 0:04:53]} Bh4 {[%emt 0:02:33]} 33. Bf8 {[%emt 0:02:50]} Be1 {[%emt 0:01:02]} 34. Bc5 {[%emt 0:00:54]} Kf6 {[%emt 0:02:03]} 35. Bd6 {[%emt 0:02:28]} Bg3 {[%emt 0:01:48]} 36. Bc5 {[%emt 0:00:19]} Ke6 {[%emt 0:00:37]} 37. Bf8 {[%emt 0:00:40]} Be1 {[%emt 0:00:45]} 38. Bc5 {[%emt 0:00:22]} Bh4 {[%emt 0:01:07]} 39. Bf8 {[%emt 0:00:23]} Kf7 {[%emt 0:01:53]} 40. Bd6 {[%emt 0:00:00]} Bg3 {[%emt 0:00:00]} 41. Bc5 {[%emt 0:01:23]} Be1 {[%emt 0:11:06]} 42. Bd6 {[%emt 0:00:17]} Ke6 {[%emt 0:00:37]} 43. Bc5 {[%emt 0:00:10]} Be8 {[%emt 0:01:33]} 44. Bf8 {[%emt 0:01:03]} Bg6 {[%emt 0:01:17]} 45. Bc5 {[%emt 0:02:31]} Bh4 {[%emt 0:00:26]} 46. Bf8 {[%emt 0:01:16]} Bg5 {[%emt 0:00:52]} 47. Bc5 {[%emt 0:00:31]} e4+ {[%emt 0:01:11]} 48. fxe4 {[%emt 0:00:49]} fxe4+ {[%emt 0:00:02]} 49. Ke2 {[%emt 0:03:49]} Ke5 {[%emt 0:01:05]} 50. Kf2 {[%emt 0:06:21]} Be8 {[%emt 0:01:24]} 51. Ke2 {[%emt 0:03:01]} Bd7 {[%emt 0:00:51]} 52. Kf2 {[%emt 0:01:35]} Bd2 {[%emt 0:00:22]} 53. Nb1 {[%emt 0:01:34]} Bc1 {[%emt 0:00:56]} 54. Nc3 {[%emt 0:00:47]} Bg5 {[%emt 0:00:31]} 55. Ke2 {[%emt 0:00:32]} Be6 {[%emt 0:00:17]} 56. Kf2 {[%emt 0:01:10]} Bc4 {[%emt 0:00:34]} 57. Nd1 {[%emt 0:01:06]} Bd2 {[%emt 0:01:34]} 58. Ne3 {[%emt 0:00:47]} Bb5 {[%emt 0:01:02]} 59. Kg3 {[%emt 0:01:43]} Be1+ {[%emt 0:00:13]} 60. Kh2 {[%emt 0:00:09]} Bd3 {[%emt 0:00:42]} 61. g3 {[%emt 0:00:47]} Be2 {[%emt 0:00:20]} 62. Nc2 {[%emt 0:01:31]} Bc3 {[%emt 0:00:20]} 63. Ne3 {[%emt 0:00:26]} Be1 {[%emt 0:00:52]} 64. Nc2 {[%emt 0:00:17]} Bd2 {[%emt 0:00:13]} 65. Ne3 {[%emt 0:00:20]} Bd3 {[%emt 0:01:01]} 66. Kg2 {[%emt 0:00:17]} Be1 {[%emt 0:00:22]} 67. Kh2 {[%emt 0:00:54]} Ke6 {[%emt 0:00:08]} 68. Kg2 {[%emt 0:00:17]} Be2 {[%emt 0:00:39]} 69. Nc2 {[%emt 0:00:31]} Bf3+ {[%emt 0:00:07]} 70. Kh2 {[%emt 0:00:19]} Bd2 {[%emt 0:00:13]} 71. Kg1 {[%emt 0:01:01]} Kd5 {[%emt 0:00:39]} 72. Ne3+ {[%emt 0:00:22]} Kc6 {[%emt 0:01:13]} 73. Kf2 {[%emt 0:00:01]} Kb5 {[%emt 0:00:16]} 74. g4 {[%emt 0:00:59]} hxg4 {[%emt 0:00:06]} 75. hxg4 {[%emt 0:00:31]} Bxb4 {[%emt 0:00:43]} 76. Bxb4 {[%emt 0:00:52]} Kxb4 {[%emt 0:00:02]} 77. g5 {[%emt 0:00:17]} Bh5 {[%emt 0:00:17]} 78. Nf5 {[%emt 0:00:39]} Kxa5 {[%emt 0:00:19]} 79. Ke3 {[%emt 0:00:04]} Kb4 {[%emt 0:00:42]} 80. Ng3 {[%emt 0:00:16]} Bg6 {[%emt 0:00:31]} 81. Nxe4 {[%emt 0:00:05]} a5 {[%emt 0:01:04]} 82. Kd4 {[%emt 0:01:20]} a4 {[%emt 0:00:45]} 83. Nc3 {[%emt 0:00:08]} a3 {[%emt 0:00:28]} 84. Na2+ {[%emt 0:00:45]} Kb3 {[%emt 0:00:12]} 85. Nc3 {[%emt 0:00:19]} b6 {[%emt 0:00:49]} 0-1

[Event "POL-chT 2nd League-4 2020"]
[Site "Poronin"]
[Date "2020.09.07"]
[Round "3.9"]
[White "Wisniewski, Adam"]
[Black "Kurpiewski, Slawomir"]
[Result "1-0"]
[ECO "C50"]
[WhiteElo "1934"]
[BlackElo "1943"]
[Annotator "NA"]
[PlyCount "55"]
[EventDate "2020.09.05"]
[EventType "team-tourn"]
[EventCountry "POL"]
[SourceTitle "playchess.com"]
[Source "ChessBase"]
[SourceQuality "1"]
[TimeControl "40/5400+30:900+30"]

1. e4 {[%emt 0:00:00]} e5 {[%emt 0:00:00]} 2. Nf3 {[%emt 0:00:00]} Nc6 {[%emt 0:00:00]} 3. Bc4 {[%emt 0:00:00]} Nf6 {[%emt 0:00:00]} 4. d3 {[%emt 0:00:25]} Bc5 {[%emt 0:00:00]} 5. Bb3 {[%emt 0:01:49]} d6 {[%emt 0:00:20]} 6. c3 {[%emt 0:00:19]} a6 {[%emt 0:01:10]} 7. O-O {[%emt 0:02:00]} Ba7 {[%emt 0:00:33]} 8. h3 {[%emt 0:01:41]} h6 {[%emt 0:10:30]} 9. Be3 {[%emt 0:05:00]} g5 {[%emt 0:04:22]} 10. Nh2 {[%emt 0:14:23]} Ne7 {[%emt 0:03:59]} 11. Bxa7 {[%emt 0:04:51]} Rxa7 {[%emt 0:00:17]} 12. d4 {[%emt 0:00:32]} O-O {[%emt 0:06:38]} 13. Ng4 {[%emt 0:12:38]} Nxg4 {[%emt 0:33:25]} 14. hxg4 {[%emt 0:00:31]} Ng6 {[%emt 0:04:20]} 15. Na3 {[%emt 0:02:58]} b5 {[%emt 0:01:13]} 16. Nc2 {[%emt 0:00:43]} c5 {[%emt 0:00:21]} 17. Ne3 {[%emt 0:05:24]} Be6 {[%emt 0:07:14]} 18. Nf5 {[%emt 0:05:27]} c4 {[%emt 0:10:46]} 19. Bc2 {[%emt 0:00:22]} Bxf5 {[%emt 0:01:21]} 20. gxf5 {[%emt 0:00:59]} Ne7 {[%emt 0:02:42]} 21. Qh5 {[%emt 0:04:03]} Kg7 {[%emt 0:00:04]} 22. Rad1 {[%emt 0:03:22]} Qb6 {[%emt 0:03:45]} 23. Rd2 {[%emt 0:04:10]} Ng8 {[%emt 0:01:37]} 24. Rfd1 {[%emt 0:03:28]} Nf6 {[%emt 0:00:41]} 25. Qh2 {[%emt 0:01:31]} Qb8 {[%emt 0:04:04]} 26. dxe5 {[%emt 0:00:59]} dxe5 {[%emt 0:00:02]} 27. Rd6 {[%emt 0:00:13]} Qe8 {[%emt 0:00:34]} 28. Rxf6 {[%emt 0:00:37]} 1-0

[Event "POL-chT 2nd League-4 2020"]
[Site "Poronin"]
[Date "2020.09.07"]
[Round "3.10"]
[White "Sikorski, Tomasz"]
[Black "Stoppel, Mariusz"]
[Result "1/2-1/2"]
[ECO "D00"]
[WhiteElo "1702"]
[BlackElo "1982"]
[Annotator "ChessBase"]
[PlyCount "51"]
[EventDate "2020.09.05"]
[EventType "team-tourn"]
[EventCountry "POL"]
[SourceTitle "playchess.com"]
[Source "ChessBase"]
[SourceQuality "1"]
[TimeControl "40/5400+30:1800+30"]

1. d4 {[%emt 0:00:00]} d5 {[%emt 0:00:00]} 2. Bf4 {[%emt 0:00:00]} Nf6 {[%emt 0:00:21]} 3. e3 {[%emt 0:00:00]} Bf5 {[%emt 0:00:32]} 4. Nf3 {[%emt 0:00:32]} e6 {[%emt 0:00:16]} 5. Be2 {[%emt 0:00:25]} Be7 {[%emt 0:00:36]} 6. O-O {[%emt 0:00:34]} O-O {[%emt 0:00:23]} 7. h3 {[%emt 0:00:51]} Nbd7 {[%emt 0:00:44]} 8. c4 {[%emt 0:00:53]} dxc4 {[%emt 0:07:25]} 9. Bxc4 {[%emt 0:00:38]} Nb6 {[%emt 0:00:08]} 10. Be2 {[%emt 0:00:59]} Nbd5 {[%emt 0:01:35]} 11. Bh2 {[%emt 0:01:18]} Ne4 {[%emt 0:03:00]} 12. Nbd2 {[%emt 0:05:56]} Bd6 {[%emt 0:02:51]} 13. Nxe4 {[%emt 0:07:54]} Bxh2+ {[%emt 0:02:23]} 14. Kxh2 {[%emt 0:01:24]} Bxe4 {[%emt 0:00:05]} 15. Qb3 {[%emt 0:03:41]} Qd6+ {[%emt 0:06:19]} 16. Kh1 {[%emt 0:03:04]} a5 {[%emt 0:02:26]} 17. Nd2 {[%emt 0:04:31]} Bg6 {[%emt 0:01:15]} 18. Nc4 {[%emt 0:00:21]} Qb4 {[%emt 0:01:48]} 19. Qxb4 {[%emt 0:02:06]} axb4 {[%emt 0:03:34]} 20. Ne5 {[%emt 0:06:15]} Ra5 {[%emt 0:04:08]} 21. Nxg6 {[%emt 0:02:47]} hxg6 {[%emt 0:00:05]} 22. Bc4 {[%emt 0:00:35]} c6 {[%emt 0:03:22]} 23. g3 {[%emt 0:04:57]} Rd8 {[%emt 0:00:26]} 24. Kg2 {[%emt 0:01:22]} Kf8 {[%emt 0:00:14]} 25. Kf3 {[%emt 0:01:21]} Ke7 {[%emt 0:00:16]} 26. Rac1 {[%emt 0:05:28]} 1/2-1/2